[Event "Titled Tuesday Blitz May 18 2021"]
[White "dropstoneDP"]
[Black "Sjugirov, Sanan"]
[BlackFideId "4189302"]
[WhiteElo "2915"]
[BlackElo "2472"]
[Result "1-0"]
[Round "10"]
[TimeControl "180+1"]
[Date "2021.05.18"]
[WhiteClock "0:00:18"]
[BlackClock "0:00:03"]

1. Nf3 {[%clk 0:03:00]}  d5 {[%clk 0:02:59]} 2. b3 {[%clk 0:03:00]}  c5 {[%clk 0:02:55]} 3. e3 {[%clk 0:03:00]}  Nf6 {[%clk 0:02:55]} 4. Bb2 {[%clk 0:03:00]}  g6 {[%clk 0:02:54]} 5. c4 {[%clk 0:02:59]}  dxc4 {[%clk 0:02:51]} 6. Bxc4 {[%clk 0:02:59]}  Bg7 {[%clk 0:02:51]} 7. O-O {[%clk 0:02:59]}  O-O {[%clk 0:02:51]} 8. d4 {[%clk 0:03:00]}  cxd4 {[%clk 0:02:51]} 9. Nxd4 {[%clk 0:03:01]}  Bd7 {[%clk 0:02:51]} 10. Nd2 {[%clk 0:02:59]}  Nc6 {[%clk 0:02:50]} 11. N2f3 {[%clk 0:03:00]}  Qa5 {[%clk 0:02:36]} 12. Qe1 {[%clk 0:02:53]}  Qxe1 {[%clk 0:02:28]} 13. Rfxe1 {[%clk 0:02:54]}  Rfd8 {[%clk 0:02:16]} 14. Rad1 {[%clk 0:02:52]}  Nxd4 {[%clk 0:02:14]} 15. Bxd4 {[%clk 0:02:51]}  Be8 {[%clk 0:02:05]} 16. h3 {[%clk 0:02:49]}  Ne4 {[%clk 0:02:01]} 17. Bxg7 {[%clk 0:02:43]}  Kxg7 {[%clk 0:02:02]} 18. Rd4 {[%clk 0:02:41]}  Nd6 {[%clk 0:01:45]} 19. Red1 {[%clk 0:02:39]}  Rdc8 {[%clk 0:01:42]} 20. Bd5 {[%clk 0:02:24]}  Rc7 {[%clk 0:01:40]} 21. Ne5 {[%clk 0:02:22]}  Rac8 {[%clk 0:01:37]} 22. Bf3 {[%clk 0:02:17]}  b6 {[%clk 0:01:26]} 23. R4d2 {[%clk 0:02:11]}  Rc1 {[%clk 0:01:18]} 24. Rxc1 {[%clk 0:01:55]}  Rxc1+ {[%clk 0:01:17]} 25. Kh2 {[%clk 0:01:56]}  a5 {[%clk 0:01:07]} 26. Nd3 {[%clk 0:01:54]}  Rc8 {[%clk 0:00:35]} 27. Nf4 {[%clk 0:01:54]}  b5 {[%clk 0:00:35]} 28. Nd5 {[%clk 0:01:54]}  Kf8 {[%clk 0:00:35]} 29. e4 {[%clk 0:01:38]}  b4 {[%clk 0:00:33]} 30. Ne3 {[%clk 0:01:31]}  f6 {[%clk 0:00:28]} 31. Rd5 {[%clk 0:01:23]}  a4 {[%clk 0:00:22]} 32. bxa4 {[%clk 0:01:14]}  Bxa4 {[%clk 0:00:23]} 33. Ra5 {[%clk 0:01:10]}  Be8 {[%clk 0:00:20]} 34. e5 {[%clk 0:01:05]}  fxe5 {[%clk 0:00:19]} 35. Rxe5 {[%clk 0:01:06]}  Bf7 {[%clk 0:00:18]} 36. Bd5 {[%clk 0:00:58]}  Rc5 {[%clk 0:00:15]} 37. f4 {[%clk 0:00:55]}  Nf5 {[%clk 0:00:03]} 38. Bxf7 {[%clk 0:00:31]}  Rxe5 {[%clk 0:00:04]} 39. fxe5 {[%clk 0:00:31]}  Nxe3 {[%clk 0:00:05]} 40. Bb3 {[%clk 0:00:30]}  Nf5 {[%clk 0:00:05]} 41. g4 {[%clk 0:00:29]}  Nd4 {[%clk 0:00:05]} 42. Kg3 {[%clk 0:00:21]}  g5 {[%clk 0:00:05]} 43. Bd5 {[%clk 0:00:18]}  e6 {[%clk 0:00:04]} 44. Be4 {[%clk 0:00:19]}  h6 {[%clk 0:00:04]} 45. Kf2 {[%clk 0:00:18]}  Nb5 {[%clk 0:00:04]} 46. Bd3 {[%clk 0:00:19]}  Nc3 {[%clk 0:00:04]} 47. Bc4 {[%clk 0:00:19]}  Ke7 {[%clk 0:00:04]} 48. Ke3 {[%clk 0:00:19]}  Nd1+ {[%clk 0:00:03]} 49. Ke2 {[%clk 0:00:18]}  Nc3+ {[%clk 0:00:03]} 50. Kd3 {[%clk 0:00:18]}  Kd7 {[%clk 0:00:03]} 51. Kd4 {[%clk 0:00:18]} 1-0


[Site "https://www.chess.com"]

[Event "Titled Tuesday Blitz May 18 2021"]
[White "Abdusattorov, Nodirbek"]
[Black "Baklan, Vladimir"]
[WhiteFideId "14204118"]
[BlackFideId "14102196"]
[WhiteElo "2662"]
[BlackElo "2596"]
[Result "1-0"]
[Round "11"]
[TimeControl "180+1"]
[Date "2021.05.18"]
[WhiteClock "0:01:09"]
[BlackClock "0:01:15"]

1. d4 {[%clk 0:03:00]}  Nf6 {[%clk 0:02:59]} 2. c4 {[%clk 0:02:59]}  g6 {[%clk 0:02:59]} 3. g3 {[%clk 0:02:57]}  Bg7 {[%clk 0:02:58]} 4. Bg2 {[%clk 0:02:57]}  c5 {[%clk 0:02:57]} 5. Nf3 {[%clk 0:02:54]}  Qa5+ {[%clk 0:02:57]} 6. Nbd2 {[%clk 0:02:43]}  cxd4 {[%clk 0:02:53]} 7. Nxd4 {[%clk 0:02:39]}  Nc6 {[%clk 0:02:52]} 8. Nb5 {[%clk 0:02:35]}  d5 {[%clk 0:02:39]} 9. Nc3 {[%clk 0:02:19]}  d4 {[%clk 0:02:33]} 10. Nd5 {[%clk 0:02:16]}  e6 {[%clk 0:02:26]} 11. Nxf6+ {[%clk 0:02:16]}  Bxf6 {[%clk 0:02:27]} 12. O-O {[%clk 0:02:16]}  O-O {[%clk 0:02:27]} 13. Ne4 {[%clk 0:02:15]}  Bg7 {[%clk 0:02:26]} 14. Bd2 {[%clk 0:02:12]}  Qc7 {[%clk 0:02:24]} 15. b4 {[%clk 0:02:11]}  a5 {[%clk 0:02:09]} 16. b5 {[%clk 0:02:07]}  Ne7 {[%clk 0:02:08]} 17. c5 {[%clk 0:01:56]}  Nd5 {[%clk 0:02:02]} 18. Rc1 {[%clk 0:01:52]}  Bd7 {[%clk 0:01:51]} 19. a4 {[%clk 0:01:44]}  f5 {[%clk 0:01:48]} 20. Nd6 {[%clk 0:01:43]}  b6 {[%clk 0:01:46]} 21. Bxd5 {[%clk 0:01:21]}  exd5 {[%clk 0:01:45]} 22. Qb3 {[%clk 0:01:21]}  Be6 {[%clk 0:01:43]} 23. Qa3 {[%clk 0:01:18]}  Rfd8 {[%clk 0:01:23]} 24. cxb6 {[%clk 0:01:13]}  Qxd6 {[%clk 0:01:22]} 25. Qxd6 {[%clk 0:01:13]}  Rxd6 {[%clk 0:01:21]} 26. b7 {[%clk 0:01:14]}  Rb8 {[%clk 0:01:21]} 27. Bf4 {[%clk 0:01:14]}  Bf8 {[%clk 0:01:13]} 28. Bxd6 {[%clk 0:01:14]}  Bxd6 {[%clk 0:01:14]} 29. Rc6 {[%clk 0:01:15]}  Bb4 {[%clk 0:01:14]} 30. Rxe6 {[%clk 0:01:12]}  Rxb7 {[%clk 0:01:14]} 31. Rc1 {[%clk 0:01:10]}  Bc3 {[%clk 0:01:14]} 32. e3 {[%clk 0:01:09]}  Kf7 {[%clk 0:01:15]} 33. Rc6 {[%clk 0:01:09]} 1-0


[Site "https://www.chess.com"]

[Event "Titled Tuesday Blitz May 18 2021"]
[White "Asis Gargatagli, Hipolito"]
[Black "Nakamura, Hikaru"]
[WhiteFideId "2260735"]
[BlackFideId "2016192"]
[WhiteElo "2557"]
[BlackElo "2900"]
[Result "0-1"]
[Round "11"]
[TimeControl "180+1"]
[Date "2021.05.18"]
[WhiteClock "0:02:07"]
[BlackClock "0:02:24"]

1. e4 {[%clk 0:03:00]}  g6 {[%clk 0:03:00]} 2. d4 {[%clk 0:02:59]}  Bg7 {[%clk 0:03:00]} 3. Nc3 {[%clk 0:02:59]}  c6 {[%clk 0:03:00]} 4. Be3 {[%clk 0:02:59]}  d5 {[%clk 0:03:00]} 5. f3 {[%clk 0:02:59]}  b5 {[%clk 0:02:59]} 6. Qd2 {[%clk 0:02:56]}  h5 {[%clk 0:02:55]} 7. Bd3 {[%clk 0:02:49]}  a6 {[%clk 0:02:43]} 8. Nge2 {[%clk 0:02:43]}  Nf6 {[%clk 0:02:41]} 9. e5 {[%clk 0:02:38]}  Ng8 {[%clk 0:02:41]} 10. O-O-O {[%clk 0:02:36]}  Nh6 {[%clk 0:02:31]} 11. Kb1 {[%clk 0:02:35]}  Nf5 {[%clk 0:02:28]} 12. Bf2 {[%clk 0:02:33]}  Bh6 {[%clk 0:02:25]} 13. f4 {[%clk 0:02:32]}  Nd7 {[%clk 0:02:24]} 14. h3 {[%clk 0:02:19]}  h4 {[%clk 0:02:24]} 15. Bxf5 {[%clk 0:02:08]}  gxf5 {[%clk 0:02:25]} 16. Bxh4 {[%clk 0:02:07]}  Nb6 {[%clk 0:02:25]} 17. Qd3 {[%clk 0:02:07]}  b4 {[%clk 0:02:24]} 0-1


[Site "https://www.chess.com"]

[Event "Titled Tuesday Blitz May 18 2021"]
[White "Bortnyk, Olexandr"]
[Black "Nesterov, Arseniy"]
[WhiteFideId "14120828"]
[BlackFideId "24198455"]
[WhiteElo "2723"]
[BlackElo "2441"]
[Result "1-0"]
[Round "11"]
[TimeControl "180+1"]
[Date "2021.05.18"]
[WhiteClock "0:00:04"]
[BlackClock "0:00:01"]

1. e4 {[%clk 0:03:00]}  e5 {[%clk 0:03:00]} 2. Bc4 {[%clk 0:02:59]}  Nc6 {[%clk 0:03:00]} 3. d3 {[%clk 0:02:59]}  Nf6 {[%clk 0:03:00]} 4. Nc3 {[%clk 0:02:58]}  Na5 {[%clk 0:03:00]} 5. Bg5 {[%clk 0:02:55]}  Nxc4 {[%clk 0:03:00]} 6. dxc4 {[%clk 0:02:56]}  Be7 {[%clk 0:02:59]} 7. Qd3 {[%clk 0:02:49]}  d6 {[%clk 0:02:57]} 8. Nge2 {[%clk 0:02:47]}  O-O {[%clk 0:02:56]} 9. Bxf6 {[%clk 0:02:46]}  Bxf6 {[%clk 0:02:56]} 10. O-O-O {[%clk 0:02:47]}  a6 {[%clk 0:02:45]} 11. Nd5 {[%clk 0:02:43]}  b5 {[%clk 0:02:44]} 12. c5 {[%clk 0:02:24]}  dxc5 {[%clk 0:02:37]} 13. Qc3 {[%clk 0:02:09]}  Bg5+ {[%clk 0:02:28]} 14. Kb1 {[%clk 0:01:57]}  c6 {[%clk 0:02:27]} 15. h4 {[%clk 0:01:41]}  Bh6 {[%clk 0:01:51]} 16. Nb4 {[%clk 0:01:08]}  Qb6 {[%clk 0:01:44]} 17. Nd3 {[%clk 0:01:08]}  c4 {[%clk 0:01:43]} 18. Nxe5 {[%clk 0:01:08]}  Qxf2 {[%clk 0:01:40]} 19. Nd4 {[%clk 0:01:05]}  c5 {[%clk 0:01:31]} 20. Ndc6 {[%clk 0:01:06]}  Be6 {[%clk 0:01:28]} 21. g4 {[%clk 0:00:55]}  b4 {[%clk 0:01:13]} 22. Qh3 {[%clk 0:00:53]}  c3 {[%clk 0:00:51]} 23. Rhf1 {[%clk 0:00:48]}  Qe3 {[%clk 0:00:49]} 24. Qh2 {[%clk 0:00:45]}  cxb2 {[%clk 0:00:44]} 25. Nd3 {[%clk 0:00:43]}  Qxe4 {[%clk 0:00:35]} 26. Na5 {[%clk 0:00:34]}  c4 {[%clk 0:00:20]} 27. Nc5 {[%clk 0:00:24]}  Qxg4 {[%clk 0:00:16]} 28. Nc6 {[%clk 0:00:19]}  c3 {[%clk 0:00:13]} 29. Nb3 {[%clk 0:00:13]}  a5 {[%clk 0:00:10]} 30. Ncxa5 {[%clk 0:00:09]}  Bxb3 {[%clk 0:00:08]} 31. Nxb3 {[%clk 0:00:09]}  Rxa2 {[%clk 0:00:06]} 32. Kxa2 {[%clk 0:00:07]}  Ra8+ {[%clk 0:00:05]} 33. Kb1 {[%clk 0:00:08]}  Qc4 {[%clk 0:00:02]} 34. Qd6 {[%clk 0:00:06]}  g6 {[%clk 0:00:02]} 35. Qd5 {[%clk 0:00:04]}  Qa6 {[%clk 0:00:01]} 36. Qxf7+ {[%clk 0:00:03]}  Kh8 {[%clk 0:00:01]} 37. Qf6+ {[%clk 0:00:04]} 1-0


[Site "https://www.chess.com"]

[Event "Titled Tuesday Blitz May 18 2021"]
[White "Fernandez, Daniel Howard"]
[Black "Chigaev, Maksim"]
[WhiteFideId "5801605"]
[BlackFideId "4108116"]
[WhiteElo "2468"]
[BlackElo "2646"]
[Result "0-1"]
[Round "11"]
[TimeControl "180+1"]
[Date "2021.05.18"]
[WhiteClock "0:00:59"]
[BlackClock "0:01:56"]

1. c4 {[%clk 0:03:00]}  g6 {[%clk 0:02:59]} 2. g3 {[%clk 0:02:59]}  Bg7 {[%clk 0:02:58]} 3. Bg2 {[%clk 0:02:59]}  c5 {[%clk 0:02:58]} 4. Nc3 {[%clk 0:03:00]}  Nc6 {[%clk 0:02:58]} 5. e4 {[%clk 0:02:59]}  d6 {[%clk 0:02:56]} 6. Nge2 {[%clk 0:02:59]}  Nf6 {[%clk 0:02:56]} 7. d3 {[%clk 0:03:00]}  O-O {[%clk 0:02:57]} 8. O-O {[%clk 0:02:59]}  Nd4 {[%clk 0:02:57]} 9. h3 {[%clk 0:02:59]}  a6 {[%clk 0:02:53]} 10. Be3 {[%clk 0:02:57]}  Nd7 {[%clk 0:02:45]} 11. a4 {[%clk 0:02:51]}  Rb8 {[%clk 0:02:43]} 12. Rb1 {[%clk 0:02:48]}  b6 {[%clk 0:02:39]} 13. f4 {[%clk 0:02:47]}  Bb7 {[%clk 0:02:39]} 14. f5 {[%clk 0:02:45]}  e6 {[%clk 0:02:35]} 15. fxe6 {[%clk 0:02:40]}  Nxe6 {[%clk 0:02:32]} 16. Qd2 {[%clk 0:02:37]}  Ne5 {[%clk 0:02:30]} 17. Nf4 {[%clk 0:02:34]}  Bc6 {[%clk 0:02:24]} 18. b3 {[%clk 0:02:29]}  b5 {[%clk 0:02:22]} 19. axb5 {[%clk 0:02:29]}  axb5 {[%clk 0:02:22]} 20. Ncd5 {[%clk 0:02:30]}  bxc4 {[%clk 0:02:15]} 21. bxc4 {[%clk 0:02:30]}  Rxb1 {[%clk 0:02:14]} 22. Rxb1 {[%clk 0:02:30]}  Bxd5 {[%clk 0:02:10]} 23. Nxd5 {[%clk 0:02:30]}  h5 {[%clk 0:02:11]} 24. Rb6 {[%clk 0:02:02]}  h4 {[%clk 0:02:01]} 25. gxh4 {[%clk 0:01:48]}  Qxh4 {[%clk 0:02:02]} 26. Rxd6 {[%clk 0:01:48]}  Nf3+ {[%clk 0:02:01]} 27. Bxf3 {[%clk 0:01:45]}  Qg3+ {[%clk 0:02:01]} 28. Qg2 {[%clk 0:01:30]}  Qxd6 {[%clk 0:02:01]} 29. h4 {[%clk 0:01:26]}  Bd4 {[%clk 0:02:01]} 30. Bxd4 {[%clk 0:01:25]}  Nxd4 {[%clk 0:02:01]} 31. h5 {[%clk 0:01:26]}  Kg7 {[%clk 0:02:01]} 32. Bg4 {[%clk 0:01:05]}  Qe5 {[%clk 0:01:57]} 33. hxg6 {[%clk 0:00:59]}  fxg6 {[%clk 0:01:56]} 0-1


[Site "https://www.chess.com"]

[Event "Titled Tuesday Blitz May 18 2021"]
[White "Hansen, Eric"]
[Black "Diaz Camallonga, Carles"]
[WhiteFideId "2606771"]
[BlackFideId "22235256"]
[WhiteElo "2568"]
[BlackElo "2438"]
[Result "0-1"]
[Round "11"]
[TimeControl "180+1"]
[Date "2021.05.18"]
[WhiteClock "0:00:07"]
[BlackClock "0:00:19"]

1. e4 {[%clk 0:02:58]}  e6 {[%clk 0:03:00]} 2. d4 {[%clk 0:02:57]}  d5 {[%clk 0:03:00]} 3. Nc3 {[%clk 0:02:58]}  Bb4 {[%clk 0:02:59]} 4. e5 {[%clk 0:02:30]}  c5 {[%clk 0:02:58]} 5. a3 {[%clk 0:02:28]}  Bxc3+ {[%clk 0:02:57]} 6. bxc3 {[%clk 0:02:29]}  Qa5 {[%clk 0:02:57]} 7. Bd2 {[%clk 0:02:28]}  Qa4 {[%clk 0:02:57]} 8. Qb1 {[%clk 0:02:27]}  c4 {[%clk 0:02:57]} 9. Nf3 {[%clk 0:02:25]}  Nc6 {[%clk 0:02:57]} 10. Be2 {[%clk 0:02:15]}  Bd7 {[%clk 0:02:57]} 11. O-O {[%clk 0:02:15]}  O-O-O {[%clk 0:02:57]} 12. h4 {[%clk 0:02:00]}  f6 {[%clk 0:02:56]} 13. Bf4 {[%clk 0:01:59]}  Be8 {[%clk 0:02:49]} 14. Re1 {[%clk 0:01:53]}  Bg6 {[%clk 0:02:45]} 15. Bf1 {[%clk 0:01:51]}  Bxc2 {[%clk 0:02:38]} 16. Qc1 {[%clk 0:01:51]}  Bf5 {[%clk 0:02:29]} 17. Bh2 {[%clk 0:01:46]}  h5 {[%clk 0:01:50]} 18. Qf4 {[%clk 0:01:43]}  Rd7 {[%clk 0:01:47]} 19. exf6 {[%clk 0:00:57]}  gxf6 {[%clk 0:01:46]} 20. Nd2 {[%clk 0:00:30]}  Nge7 {[%clk 0:01:28]} 21. Be2 {[%clk 0:00:30]}  Qa5 {[%clk 0:01:07]} 22. Qe3 {[%clk 0:00:21]}  Ng6 {[%clk 0:00:57]} 23. Bg3 {[%clk 0:00:20]}  Qd8 {[%clk 0:00:46]} 24. a4 {[%clk 0:00:19]}  Qf8 {[%clk 0:00:43]} 25. a5 {[%clk 0:00:14]}  Qh6 {[%clk 0:00:43]} 26. Qxh6 {[%clk 0:00:08]}  Rxh6 {[%clk 0:00:44]} 27. Nf1 {[%clk 0:00:07]}  Nge7 {[%clk 0:00:38]} 28. Bf4 {[%clk 0:00:06]}  Rh8 {[%clk 0:00:36]} 29. Ng3 {[%clk 0:00:07]}  Bg6 {[%clk 0:00:36]} 30. Bf3 {[%clk 0:00:06]}  Nd8 {[%clk 0:00:35]} 31. Ra4 {[%clk 0:00:05]}  Nf5 {[%clk 0:00:33]} 32. Nxf5 {[%clk 0:00:02]}  Bxf5 {[%clk 0:00:34]} 33. Rea1 {[%clk 0:00:02]}  Nc6 {[%clk 0:00:33]} 34. Bg3 {[%clk 0:00:02]}  Bg4 {[%clk 0:00:30]} 35. Bxg4 {[%clk 0:00:01]}  hxg4 {[%clk 0:00:31]} 36. Re1 {[%clk 0:00:01]}  Re7 {[%clk 0:00:30]} 37. Ra2 {[%clk 0:00:02]}  e5 {[%clk 0:00:28]} 38. a6 {[%clk 0:00:03]}  b6 {[%clk 0:00:28]} 39. dxe5 {[%clk 0:00:03]}  fxe5 {[%clk 0:00:28]} 40. Rd2 {[%clk 0:00:04]}  Rd8 {[%clk 0:00:26]} 41. h5 {[%clk 0:00:04]}  Rh7 {[%clk 0:00:26]} 42. Bxe5 {[%clk 0:00:04]}  Re7 {[%clk 0:00:23]} 43. Rde2 {[%clk 0:00:04]}  Rde8 {[%clk 0:00:23]} 44. h6 {[%clk 0:00:04]}  Rxe5 {[%clk 0:00:21]} 45. Rxe5 {[%clk 0:00:04]}  Rxe5 {[%clk 0:00:21]} 46. Rd1 {[%clk 0:00:03]}  Rh5 {[%clk 0:00:20]} 47. h7 {[%clk 0:00:04]}  Ne7 {[%clk 0:00:19]} 48. Re1 {[%clk 0:00:04]}  Kd7 {[%clk 0:00:19]} 49. Re3 {[%clk 0:00:04]}  Rxh7 {[%clk 0:00:19]} 50. f3 {[%clk 0:00:05]}  gxf3 {[%clk 0:00:19]} 51. Rxf3 {[%clk 0:00:05]}  Rh6 {[%clk 0:00:19]} 52. Kf2 {[%clk 0:00:04]}  b5 {[%clk 0:00:19]} 53. g4 {[%clk 0:00:05]}  Rxa6 {[%clk 0:00:19]} 54. Rf7 {[%clk 0:00:05]}  Rg6 {[%clk 0:00:19]} 55. Kf3 {[%clk 0:00:05]}  Ke6 {[%clk 0:00:20]} 56. Rh7 {[%clk 0:00:05]}  a5 {[%clk 0:00:19]} 57. Kf4 {[%clk 0:00:05]}  Rf6+ {[%clk 0:00:19]} 58. Ke3 {[%clk 0:00:06]}  Kd6 {[%clk 0:00:18]} 59. Rh8 {[%clk 0:00:05]}  Re6+ {[%clk 0:00:18]} 60. Kd2 {[%clk 0:00:05]}  Nc6 {[%clk 0:00:18]} 61. g5 {[%clk 0:00:05]}  Rg6 {[%clk 0:00:18]} 62. Rh5 {[%clk 0:00:05]}  Kc5 {[%clk 0:00:17]} 63. Ke3 {[%clk 0:00:05]}  b4 {[%clk 0:00:18]} 64. cxb4+ {[%clk 0:00:04]}  axb4 {[%clk 0:00:18]} 65. Kf4 {[%clk 0:00:05]}  b3 {[%clk 0:00:19]} 66. Kf5 {[%clk 0:00:05]}  Rg8 {[%clk 0:00:18]} 67. Rh1 {[%clk 0:00:05]}  c3 {[%clk 0:00:18]} 68. g6 {[%clk 0:00:05]}  c2 {[%clk 0:00:18]} 69. Kf6 {[%clk 0:00:06]}  b2 {[%clk 0:00:18]} 70. Kf7 {[%clk 0:00:07]}  Rxg6 {[%clk 0:00:18]} 71. Kxg6 {[%clk 0:00:07]}  c1=Q {[%clk 0:00:18]} 72. Rxc1+ {[%clk 0:00:07]}  bxc1=Q {[%clk 0:00:19]} 0-1


[Site "https://www.chess.com"]

[Event "Titled Tuesday Blitz May 18 2021"]
[White "Indjic, Aleksandar"]
[Black "Oparin, Grigoriy"]
[WhiteFideId "911925"]
[BlackFideId "24125890"]
[WhiteElo "2643"]
[BlackElo "2628"]
[Result "1-0"]
[Round "11"]
[TimeControl "180+1"]
[Date "2021.05.18"]
[WhiteClock "0:00:21"]
[BlackClock "0:00:01"]

1. d4 {[%clk 0:03:00]}  d5 {[%clk 0:02:57]} 2. Nf3 {[%clk 0:03:00]}  Nf6 {[%clk 0:02:57]} 3. Bf4 {[%clk 0:03:00]}  e6 {[%clk 0:02:57]} 4. e3 {[%clk 0:03:00]}  Bd6 {[%clk 0:02:57]} 5. Nbd2 {[%clk 0:03:00]}  O-O {[%clk 0:02:57]} 6. Bd3 {[%clk 0:02:59]}  c5 {[%clk 0:02:58]} 7. dxc5 {[%clk 0:02:58]}  Bxf4 {[%clk 0:02:58]} 8. exf4 {[%clk 0:02:58]}  Qc7 {[%clk 0:02:58]} 9. g3 {[%clk 0:02:57]}  a5 {[%clk 0:02:58]} 10. O-O {[%clk 0:02:56]}  Nbd7 {[%clk 0:02:58]} 11. Nb3 {[%clk 0:02:52]}  a4 {[%clk 0:02:56]} 12. Nbd4 {[%clk 0:02:51]}  Nxc5 {[%clk 0:02:56]} 13. a3 {[%clk 0:02:48]}  b6 {[%clk 0:02:56]} 14. Re1 {[%clk 0:02:47]}  Ba6 {[%clk 0:02:54]} 15. Rc1 {[%clk 0:02:46]}  Rfe8 {[%clk 0:02:51]} 16. Bxa6 {[%clk 0:02:43]}  Rxa6 {[%clk 0:02:51]} 17. Kg2 {[%clk 0:02:44]}  Nce4 {[%clk 0:02:47]} 18. Ne5 {[%clk 0:02:37]}  Nd6 {[%clk 0:02:46]} 19. Qd3 {[%clk 0:02:31]}  Raa8 {[%clk 0:02:43]} 20. Re2 {[%clk 0:02:24]}  Nfe4 {[%clk 0:02:40]} 21. f3 {[%clk 0:02:23]}  Nc5 {[%clk 0:02:40]} 22. Qc3 {[%clk 0:02:15]}  Rac8 {[%clk 0:02:34]} 23. Rce1 {[%clk 0:02:11]}  b5 {[%clk 0:02:26]} 24. h4 {[%clk 0:02:09]}  Qb7 {[%clk 0:01:48]} 25. Qb4 {[%clk 0:02:01]}  h6 {[%clk 0:01:43]} 26. Nd3 {[%clk 0:01:58]}  Qb6 {[%clk 0:01:35]} 27. Nxc5 {[%clk 0:01:57]}  Rxc5 {[%clk 0:01:31]} 28. b3 {[%clk 0:01:51]}  Rcc8 {[%clk 0:01:26]} 29. h5 {[%clk 0:01:48]}  Red8 {[%clk 0:01:18]} 30. g4 {[%clk 0:01:22]}  Qc5 {[%clk 0:00:42]} 31. Qxc5 {[%clk 0:01:21]}  Rxc5 {[%clk 0:00:43]} 32. f5 {[%clk 0:01:21]}  exf5 {[%clk 0:00:43]} 33. gxf5 {[%clk 0:01:22]}  axb3 {[%clk 0:00:41]} 34. cxb3 {[%clk 0:01:21]}  Rc3 {[%clk 0:00:42]} 35. Re3 {[%clk 0:01:02]}  Rxe3 {[%clk 0:00:39]} 36. Rxe3 {[%clk 0:01:03]}  Ra8 {[%clk 0:00:39]} 37. Re7 {[%clk 0:01:01]}  Rxa3 {[%clk 0:00:35]} 38. Rd7 {[%clk 0:00:58]}  Ra6 {[%clk 0:00:35]} 39. f6 {[%clk 0:00:53]}  gxf6 {[%clk 0:00:33]} 40. Rd8+ {[%clk 0:00:53]}  Kh7 {[%clk 0:00:32]} 41. Kg3 {[%clk 0:00:54]}  b4 {[%clk 0:00:20]} 42. Rb8 {[%clk 0:00:51]}  Kg7 {[%clk 0:00:11]} 43. Kf4 {[%clk 0:00:46]}  f5 {[%clk 0:00:11]} 44. Ke5 {[%clk 0:00:45]}  f6+ {[%clk 0:00:11]} 45. Kxd5 {[%clk 0:00:45]}  f4 {[%clk 0:00:10]} 46. Rxb4 {[%clk 0:00:43]}  Nf7 {[%clk 0:00:09]} 47. Rb7 {[%clk 0:00:42]}  Rd6+ {[%clk 0:00:08]} 48. Kc5 {[%clk 0:00:42]}  Ra6 {[%clk 0:00:08]} 49. b4 {[%clk 0:00:40]}  f5 {[%clk 0:00:08]} 50. b5 {[%clk 0:00:37]}  Ra3 {[%clk 0:00:07]} 51. b6 {[%clk 0:00:35]}  Kf6 {[%clk 0:00:07]} 52. Rxf7+ {[%clk 0:00:33]}  Kxf7 {[%clk 0:00:06]} 53. b7 {[%clk 0:00:34]}  Rc3+ {[%clk 0:00:06]} 54. Kb4 {[%clk 0:00:34]}  Rd3 {[%clk 0:00:06]} 55. Nc6 {[%clk 0:00:26]}  Rd1 {[%clk 0:00:03]} 56. Kb5 {[%clk 0:00:26]}  Rd5+ {[%clk 0:00:01]} 57. Kc4 {[%clk 0:00:23]}  Rd6 {[%clk 0:00:01]} 58. Kc5 {[%clk 0:00:21]} 1-0


[Site "https://www.chess.com"]

[Event "Titled Tuesday Blitz May 18 2021"]
[White "Kamsky, Gata"]
[Black "Sadovsky, Artem"]
[WhiteFideId "2000024"]
[BlackFideId "4155840"]
[WhiteElo "2644"]
[BlackElo "2476"]
[Result "1-0"]
[Round "11"]
[TimeControl "180+1"]
[Date "2021.05.18"]
[WhiteClock "0:00:12"]
[BlackClock "0:00:23"]

1. e4 {[%clk 0:03:00]}  g6 {[%clk 0:03:00]} 2. h4 {[%clk 0:02:59]}  Bg7 {[%clk 0:03:01]} 3. h5 {[%clk 0:02:59]}  d5 {[%clk 0:03:01]} 4. exd5 {[%clk 0:02:48]}  Qxd5 {[%clk 0:03:02]} 5. Nc3 {[%clk 0:02:46]}  Qe5+ {[%clk 0:03:03]} 6. Be2 {[%clk 0:02:42]}  Bg4 {[%clk 0:03:02]} 7. d4 {[%clk 0:02:38]}  Bxe2 {[%clk 0:03:03]} 8. Ngxe2 {[%clk 0:02:38]}  Qa5 {[%clk 0:02:58]} 9. h6 {[%clk 0:02:36]}  Bf6 {[%clk 0:02:56]} 10. Qd3 {[%clk 0:02:33]}  Nc6 {[%clk 0:02:48]} 11. Bd2 {[%clk 0:02:27]}  O-O-O {[%clk 0:02:45]} 12. Ne4 {[%clk 0:01:25]}  Qd5 {[%clk 0:02:34]} 13. c4 {[%clk 0:01:20]}  Ne5 {[%clk 0:02:34]} 14. Qh3+ {[%clk 0:01:19]}  Qd7 {[%clk 0:01:50]} 15. dxe5 {[%clk 0:01:19]}  Bxe5 {[%clk 0:01:44]} 16. Qxd7+ {[%clk 0:01:16]}  Rxd7 {[%clk 0:01:45]} 17. Bc3 {[%clk 0:01:14]}  Bxc3+ {[%clk 0:01:44]} 18. N2xc3 {[%clk 0:01:14]}  f5 {[%clk 0:01:35]} 19. Ng5 {[%clk 0:01:12]}  Nf6 {[%clk 0:01:26]} 20. f3 {[%clk 0:01:11]}  Rhd8 {[%clk 0:01:21]} 21. Nf7 {[%clk 0:01:04]}  Re8 {[%clk 0:01:20]} 22. Ne5 {[%clk 0:01:02]}  Rd6 {[%clk 0:01:19]} 23. O-O {[%clk 0:00:42]}  Ng8 {[%clk 0:01:12]} 24. Nf7 {[%clk 0:00:37]}  Rf6 {[%clk 0:01:09]} 25. Ng5 {[%clk 0:00:37]}  Nxh6 {[%clk 0:01:08]} 26. Rad1 {[%clk 0:00:31]}  Nf7 {[%clk 0:01:05]} 27. Nxf7 {[%clk 0:00:27]}  Rxf7 {[%clk 0:01:06]} 28. Kf2 {[%clk 0:00:26]}  e5 {[%clk 0:01:07]} 29. Ke3 {[%clk 0:00:26]}  c6 {[%clk 0:01:07]} 30. c5 {[%clk 0:00:26]}  Rd8 {[%clk 0:01:02]} 31. Rxd8+ {[%clk 0:00:25]}  Kxd8 {[%clk 0:01:03]} 32. Rd1+ {[%clk 0:00:24]}  Rd7 {[%clk 0:01:03]} 33. Rxd7+ {[%clk 0:00:24]}  Kxd7 {[%clk 0:01:03]} 34. g3 {[%clk 0:00:23]}  Ke6 {[%clk 0:01:01]} 35. f4 {[%clk 0:00:23]}  exf4+ {[%clk 0:00:54]} 36. gxf4 {[%clk 0:00:22]}  h6 {[%clk 0:00:55]} 37. Kd4 {[%clk 0:00:20]}  g5 {[%clk 0:00:55]} 38. Ne2 {[%clk 0:00:20]}  Kf6 {[%clk 0:00:50]} 39. b4 {[%clk 0:00:20]}  h5 {[%clk 0:00:40]} 40. Ke3 {[%clk 0:00:17]}  g4 {[%clk 0:00:37]} 41. Nd4 {[%clk 0:00:17]}  h4 {[%clk 0:00:37]} 42. Kf2 {[%clk 0:00:17]}  a6 {[%clk 0:00:33]} 43. a4 {[%clk 0:00:17]}  h3 {[%clk 0:00:25]} 44. Kg3 {[%clk 0:00:16]}  Kg6 {[%clk 0:00:23]} 45. b5 {[%clk 0:00:13]}  axb5 {[%clk 0:00:24]} 46. axb5 {[%clk 0:00:13]}  cxb5 {[%clk 0:00:25]} 47. Nxb5 {[%clk 0:00:13]}  Kf6 {[%clk 0:00:26]} 48. Nd6 {[%clk 0:00:13]}  Ke6 {[%clk 0:00:27]} 49. Nxb7 {[%clk 0:00:14]}  Kd5 {[%clk 0:00:27]} 50. Nd6 {[%clk 0:00:14]}  Kxc5 {[%clk 0:00:28]} 51. Nxf5 {[%clk 0:00:14]}  Kd5 {[%clk 0:00:27]} 52. Kxg4 {[%clk 0:00:14]}  Ke4 {[%clk 0:00:23]} 53. Ng3+ {[%clk 0:00:14]}  Ke3 {[%clk 0:00:22]} 54. f5 {[%clk 0:00:14]}  h2 {[%clk 0:00:22]} 55. f6 {[%clk 0:00:14]}  Kf2 {[%clk 0:00:22]} 56. f7 {[%clk 0:00:14]}  Kg2 {[%clk 0:00:23]} 57. f8=Q {[%clk 0:00:12]}  h1=Q {[%clk 0:00:23]} 1-0


[Site "https://www.chess.com"]